bitfinex/quotes_BTCUSD_20250703
["timestamp","ask_amount","ask_price","bid_price","bid_amount"]
[1751521593023,6.21603349,109430.0,109420.0,0.0024]
[1751521594198,6.21603349,109430.0,109420.0,0.0014]
[1751521594604,6.21703349,109430.0,109420.0,0.0014]
[1751521594829,6.21703349,109430.0,109420.0,0.0004]
[1751521595248,6.21903349,109430.0,109420.0,0.0014]
[1751521595942,1.21903349,109430.0,109420.0,0.0014]
[1751521596393,6.21903349,109430.0,109420.0,0.0014]
[1751521597478,6.31671349,109430.0,109420.0,0.0014]
[1751521597688,6.68419949,109430.0,109420.0,0.0014]
[1751521602620,7.08146407,109430.0,109420.0,0.0014]
[1751521603560,6.17871033,109430.0,109420.0,0.0014]
[1751521603777,7.08166407,109430.0,109420.0,0.0014]
[1751521603964,6.78067949,109430.0,109420.0,0.0014]
[1751521605999,5.34192087,109420.0,109410.0,0.0004]
[1751521606219,6.32029019,109420.0,109410.0,0.0004]
[1751521606421,6.32029019,109420.0,109410.0,0.02460756]
[1751521606734,5.71832103,109420.0,109410.0,0.02460756]
[1751521606959,6.32029019,109420.0,109410.0,0.02460756]
[1751521607170,6.32029019,109420.0,109410.0,0.02560756]
[1751521607304,6.36905019,109420.0,109410.0,0.02560756]
[1751521607506,6.36905019,109420.0,109410.0,0.04080756]
[1751521607713,0.43568095,109420.0,109410.0,0.04080756]
[1751521607912,0.28568095,109420.0,109410.0,0.41493834]
[1751521608094,0.53345979,109420.0,109410.0,0.41493834]
[1751521608963,0.53345979,109420.0,109410.0,0.11395376]
[1751521609736,0.53345979,109420.0,109410.0,0.04080756]
[1751521610747,0.35063785,109420.0,109410.0,0.36198618]
[1751521610944,0.35977694,109420.0,109410.0,0.36198618]
[1751521611144,0.35063785,109420.0,109410.0,0.36198618]
[1751521611557,0.34149859,109420.0,109410.0,0.36198618]
[1751521611768,0.35977619,109420.0,109410.0,0.36198618]
[1751521611986,0.36891528,109420.0,109410.0,0.36198618]
[1751521613957,0.3689152,109420.0,109410.0,0.36198618]
[1751521614305,0.37805429,109420.0,109410.0,0.36198618]
[1751521614739,0.55169772,109420.0,109410.0,0.36198618]
[1751521614943,0.54255896,109420.0,109410.0,0.36198618]
[1751521615554,0.53342012,109420.0,109410.0,0.36198618]
[1751521617984,0.52428111,109420.0,109410.0,0.36198618]
[1751521618390,0.52428111,109420.0,109410.0,0.04080756]
[1751521618604,0.52428111,109420.0,109410.0,0.36198618]
[1751521619671,0.52428111,109420.0,109410.0,0.37897281]
[1751521620014,0.28568111,109420.0,109410.0,0.37897281]
[1751521620219,0.52416111,109420.0,109410.0,0.37897281]
[1751521621069,0.52416111,109420.0,109410.0,0.38534215]
[1751521621279,0.52416111,109420.0,109410.0,0.37897234]
[1751521621831,0.52416111,109420.0,109410.0,0.05779372]
[1751521623878,0.15971751,109420.0,109410.0,0.37897234]
[1751521624086,0.16885652,109420.0,109410.0,0.37897234]
[1751521624516,0.07609644,109420.0,109410.0,0.37897234]
[1751521624720,0.25887838,109420.0,109410.0,0.37897234]
[1751521625553,0.25787838,109420.0,109410.0,0.37897234]
[1751521625881,0.25887838,109420.0,109410.0,0.37997234]
[1751521626081,0.25887838,109420.0,109410.0,0.37897234]
[1751521626395,0.25887838,109420.0,109410.0,0.38097234]
[1751521628362,0.25887838,109420.0,109410.0,0.37246478]
[1751521631937,0.06695743,109420.0,109410.0,0.37246478]
[1751521632143,0.07609636,109420.0,109410.0,0.37246478]
[1751521632344,0.01927743,109420.0,109410.0,0.37246478]
[1751521632722,0.06695743,109420.0,109410.0,0.37246478]
[1751521633058,0.08523545,109420.0,109410.0,0.37246478]
[1751521633273,0.06695693,109420.0,109410.0,0.37246478]
[1751521633644,0.08523453,109420.0,109410.0,0.37246478]
[1751521634294,0.0760956,109420.0,109410.0,0.37246478]
[1751521634488,0.08523436,109420.0,109410.0,0.37246478]
[1751521635712,0.04868,109420.0,109410.0,0.6936434]
[1751521635936,0.04868,109420.0,109410.0,0.39962068]
[1751521636381,0.04888,109420.0,109410.0,0.39962068]
[1751521636612,0.04888,109420.0,109410.0,0.39762068]
[1751521637245,0.04888,109420.0,109410.0,0.43386492]
[1751521637484,0.06715709,109420.0,109410.0,0.43786492]
[1751521637727,0.06615709,109420.0,109410.0,0.43686492]
[1751521637987,0.07529602,109420.0,109410.0,0.1156863]
[1751521638200,0.07629593,109420.0,109410.0,0.40262068]
[1751521638873,0.07629593,109420.0,109410.0,0.4026267]
[1751521639606,0.06715709,109420.0,109410.0,0.4026267]
[1751521639823,0.05801842,109420.0,109410.0,0.4026267]
[1751521640444,0.06715701,109420.0,109410.0,0.4026267]
[1751521640658,0.06715701,109420.0,109410.0,0.37546694]
[1751521641297,0.07629577,109420.0,109410.0,0.37546694]
[1751521641512,0.06715701,109420.0,109410.0,0.37546694]
[1751521642207,0.07629568,109420.0,109410.0,0.37546694]
[1751521643042,0.08543452,109420.0,109410.0,0.37546694]
[1751521643473,0.07621568,109420.0,109410.0,0.37546694]
[1751521643712,0.08535452,109420.0,109410.0,0.37546694]
[1751521643910,0.08535452,109420.0,109410.0,0.35534024]
[1751521644096,0.08535444,109420.0,109410.0,0.35534024]
[1751521644298,0.09449337,109420.0,109410.0,0.35534024]
[1751521644637,0.08535545,109420.0,109410.0,0.35534024]
[1751521644842,0.07621636,109420.0,109410.0,0.38251912]
[1751521645794,0.07621636,109420.0,109410.0,0.0814672]
[1751521645979,0.08535545,109420.0,109410.0,0.38251912]
[1751521646182,0.08535545,109420.0,109410.0,0.38189912]
[1751521646504,0.07621636,109420.0,109410.0,0.38189912]
[1751521647116,0.08535545,109420.0,109410.0,0.38189912]
[1751521647341,0.07621636,109420.0,109410.0,0.38189912]
[1751521648564,0.06707743,109420.0,109410.0,0.38189912]
[1751521649299,0.07621627,109420.0,109410.0,0.38189912]
[1751521649632,0.06707743,109420.0,109410.0,0.38189912]
[1751521649861,0.06707743,109420.0,109410.0,0.3649108]
[1751521650986,0.07621627,109420.0,109410.0,0.3649108]
[1751521651259,0.06707743,109420.0,109410.0,0.3649108]
[1751521651470,0.05793842,109420.0,109410.0,0.3649108]
[1751521651616,0.08535461,109420.0,109410.0,0.06385888]
[1751521652028,0.08535461,109420.0,109410.0,0.3649108]
[1751521652999,0.0944937,109420.0,109410.0,0.3649108]
[1751521653205,0.08535461,109420.0,109410.0,0.3653108]
[1751521656284,0.07621568,109420.0,109410.0,0.3653108]
[1751521656436,0.08535452,109420.0,109410.0,0.3653108]
[1751521656965,0.09449345,109420.0,109410.0,0.3653108]
[1751521657327,0.09449404,109420.0,109410.0,0.3653108]
[1751521658351,0.09449454,109420.0,109410.0,0.3653108]
[1751521658772,0.08535545,109420.0,109410.0,0.3653108]
[1751521660925,0.08535545,109420.0,109410.0,0.36534348]
[1751521662063,0.07621644,109420.0,109410.0,0.36534348]
[1751521662294,0.06707751,109420.0,109410.0,0.36534348]
[1751521662489,0.07621652,109420.0,109410.0,0.36534348]
[1751521662710,0.06707751,109420.0,109410.0,0.36534348]
[1751521662917,0.0762166,109420.0,109410.0,0.36534348]
[1751521665113,0.06707751,109420.0,109410.0,0.36534348]
[1751521665336,0.07621652,109420.0,109410.0,0.36534348]
[1751521665538,0.07621652,109420.0,109410.0,0.06429156]
[1751521665739,0.07621652,109420.0,109410.0,0.36534348]
[1751521667029,0.06707751,109420.0,109410.0,0.36534348]
[1751521667911,0.06707751,109420.0,109410.0,0.36535169]
[1751521669433,0.07621644,109420.0,109410.0,0.36535169]
[1751521672854,0.08535553,109420.0,109410.0,0.36535169]
[1751521673055,0.07621644,109420.0,109410.0,0.36535169]
[1751521673262,0.07621644,109420.0,109410.0,0.4015902]
[1751521675723,0.08535553,109420.0,109410.0,0.4015902]
[1751521675927,0.08535553,109420.0,109410.0,0.41861071]
[1751521677351,0.08535553,109420.0,109410.0,0.4015902]
[1751521677539,0.08535553,109420.0,109410.0,0.41861073]
[1751521677746,0.08535553,109420.0,109410.0,0.4015902]
[1751521678151,0.08535553,109420.0,109410.0,0.41861073]
[1751521678945,0.08535553,109420.0,109410.0,0.11755881]
[1751521679145,0.08535553,109420.0,109410.0,0.41861073]
[1751521683710,0.07621644,109420.0,109410.0,0.41861073]
[1751521684193,0.08535553,109420.0,109410.0,0.41861073]
[1751521684633,0.26813747,109420.0,109410.0,0.41861073]
[1751521684848,0.26813747,109420.0,109410.0,0.60889073]
[1751521688858,0.06707751,109420.0,109410.0,0.60889073]
[1751521690125,0.07621593,109420.0,109410.0,0.60889073]
[1751521690715,0.07621593,109420.0,109410.0,0.41861073]
[1751521690968,0.08535494,109420.0,109410.0,0.41861073]
[1751521691987,0.08535486,109420.0,109410.0,0.41861073]
[1751521692391,0.07621593,109420.0,109410.0,0.41861073]
[1751521693128,0.08535486,109420.0,109410.0,0.41861073]
[1751521694083,0.04689395,109420.0,109410.0,0.41861073]
[1751521694493,0.04689395,109420.0,109410.0,0.41861493]
[1751521696056,0.03775553,109420.0,109410.0,0.41861493]
[1751521696866,0.02861644,109420.0,109410.0,0.41861493]
[1751521697076,0.03775553,109420.0,109410.0,0.41861493]
[1751521697291,0.02861644,109420.0,109410.0,0.41861493]
[1751521697577,0.03775553,109420.0,109410.0,0.41861493]
[1751521699785,0.02861644,109420.0,109410.0,0.41861493]
[1751521700711,0.03775545,109420.0,109410.0,0.41861493]
[1751521702450,0.0012,109420.0,109410.0,0.41861493]
[1751521702669,0.01947693,109420.0,109410.0,0.39139516]
[1751521703137,0.01033834,109420.0,109410.0,0.41850457]
[1751521703343,0.0012,109420.0,109410.0,0.41850457]
[1751521704384,0.01033842,109420.0,109410.0,0.41850457]
[1751521704603,0.0012,109420.0,109410.0,0.41850457]
[1751521709462,0.01033842,109420.0,109410.0,0.41850457]
[1751521709852,0.01033842,109420.0,109410.0,0.418484]
[1751521710774,0.0012,109420.0,109410.0,0.418484]
[1751521712486,0.0012,109420.0,109410.0,0.41841175]
[1751521712691,0.0012,109420.0,109410.0,0.11735983]
[1751521712896,0.0012,109420.0,109410.0,0.41841175]
[1751521714803,0.00125872,109420.0,109410.0,0.41841175]
[1751521715456,0.00125872,109420.0,109410.0,1.17931422]
[1751521715682,0.00125872,109420.0,109410.0,1.20678522]
[1751521716119,0.0012,109420.0,109410.0,1.2067187]
[1751521716335,0.0002,109420.0,109410.0,1.2007187]
[1751521716542,0.0012,109420.0,109410.0,1.2047187]
[1751521716750,0.0012,109420.0,109410.0,1.2107187]
[1751521717858,0.0012,109420.0,109410.0,1.20174749]
[1751521719394,0.0012,109420.0,109410.0,1.21628834]
[1751521721915,0.0012,109420.0,109410.0,1.22539419]
[1751521722629,0.0012,109420.0,109410.0,1.23453412]
[1751521722853,0.0012,109420.0,109410.0,1.25281372]
[1751521723217,0.0012,109420.0,109410.0,1.22539419]
[1751521724068,0.0012,109420.0,109410.0,1.23453403]
[1751521724187,0.0012,109420.0,109410.0,1.22539419]
[1751521724396,0.0012,109420.0,109410.0,1.24367379]
[1751521724710,0.0012,109420.0,109410.0,1.24367396]
[1751521724905,0.0012,109420.0,109410.0,1.40819283]
[1751521725158,0.0012,109420.0,109410.0,1.41733276]
[1751521725313,0.0012,109420.0,109410.0,1.23451355]
[1751521725542,0.0012,109420.0,109410.0,1.42645203]
[1751521725726,0.0012,109420.0,109410.0,1.43559179]
[1751521725959,0.0012,109420.0,109410.0,1.44473147]
[1751521726161,0.0012,109420.0,109410.0,1.23451355]
[1751521726505,0.0012,109420.0,109410.0,1.24365339]
[1751521726710,0.0012,109420.0,109410.0,1.23451355]
[1751521727268,0.0012,109420.0,109410.0,1.43353339]
[1751521727459,0.0012,109420.0,109410.0,1.42439355]
[1751521727655,0.0012,109420.0,109410.0,1.43353339]
[1751521728421,0.0012,109420.0,109410.0,1.39827783]
[1751521728624,0.0012,109420.0,109410.0,1.41525354]
[1751521729031,0.0012,109420.0,109410.0,1.42439347]
[1751521729241,0.0012,109420.0,109410.0,1.42519347]
[1751521729676,0.0012,109420.0,109410.0,1.41605354]
[1751521730266,0.0012,109420.0,109410.0,1.40694769]
[1751521733495,0.0012,109420.0,109410.0,1.41608753]
[1751521733697,0.0012,109420.0,109410.0,1.40694769]
[1751521733902,0.0012,109420.0,109410.0,1.35258992]
[1751521734665,0.0012,109420.0,109410.0,1.35259201]
[1751521735290,0.0012,109420.0,109410.0,1.53539065]
[1751521735495,0.0012,109420.0,109410.0,1.56280926]
[1751521735712,0.0012,109420.0,109410.0,1.56280935]
[1751521735928,0.0012,109420.0,109410.0,1.55366992]
[1751521736706,0.0012,109420.0,109410.0,1.56280935]
[1751521737115,0.0012,109420.0,109410.0,1.57194869]
[1751521737348,0.0012,109420.0,109410.0,1.64442572]
[1751521738534,0.0012,109420.0,109410.0,1.94547764]
[1751521739347,0.0002,109420.0,109410.0,1.92449984]
[1751521739989,0.0002,109420.0,109410.0,1.62344792]
[1751521740445,0.0002,109420.0,109410.0,1.61744792]
[1751521740846,0.0002,109420.0,109410.0,1.62244792]
[1751521741219,0.0012,109420.0,109410.0,1.64442409]
[1751521744188,0.0012,109420.0,109410.0,1.45454409]
[1751521744391,0.0012,109420.0,109410.0,1.64422409]
[1751521745810,0.0012,109420.0,109410.0,1.64422958]
[1751521749610,0.0012,109420.0,109410.0,1.64422559]
[1751521751944,0.0012,109420.0,109410.0,1.64422476]
[1751521752516,0.0012,109420.0,109410.0,1.62724792]
[1751521757704,0.0012,109420.0,109410.0,1.92224792]
[1751521757915,0.0012,109420.0,109410.0,2.15082281]
[1751521758131,0.0012,109420.0,109410.0,2.95729394]
[1751521758132,6.16e-06,109420.0,109410.0,2.95729394]
[1751521758344,0.0002,109430.0,109420.0,0.69593907]
[1751521758564,0.0002,109450.0,109440.0,0.64590065]
[1751521758777,0.0002469,109450.0,109440.0,1.36693505]
[1751521758983,0.0002469,109450.0,109440.0,1.37059605]
[1751521759191,0.0002469,109450.0,109440.0,2.87585565]
[1751521759616,0.0002469,109450.0,109440.0,2.89280056]
[1751521759825,0.0002469,109450.0,109440.0,2.04849331]
[1751521760040,0.0002469,109450.0,109440.0,2.05149331]
[1751521760251,0.0002469,109450.0,109440.0,2.05049331]
[1751521760459,0.0002469,109450.0,109440.0,0.85176904]
[1751521760666,0.0002469,109450.0,109440.0,1.73178522]
[1751521761075,0.0012469,109450.0,109440.0,1.73678522]
[1751521761908,0.0012469,109450.0,109440.0,2.10745331]
[1751521763795,0.0012469,109450.0,109440.0,2.10676237]
[1751521764219,0.0012469,109450.0,109440.0,2.40176237]
[1751521764417,0.0012469,109450.0,109440.0,2.31125997]
[1751521764829,0.0012469,109450.0,109440.0,2.26125997]
[1751521765044,0.0012469,109450.0,109440.0,2.31125997]
[1751521766489,0.0002,109470.0,109460.0,0.12344711]
[1751521766708,0.0002,109480.0,109470.0,1.28817922]
[1751521766922,0.0002469,109480.0,109470.0,1.62434709]
[1751521767133,0.0002469,109480.0,109470.0,1.64110909]
[1751521767342,0.0002469,109480.0,109470.0,2.00881718]
[1751521767548,0.0002469,109480.0,109470.0,1.98171258]
[1751521767970,0.0002469,109480.0,109470.0,1.66104449]
[1751521768189,0.0002469,109480.0,109470.0,1.95604449]
[1751521768399,0.0002,109500.0,109490.0,1.23854087]
[1751521768612,0.0002469,109500.0,109490.0,1.5566394]
[1751521768825,0.0002469,109500.0,109490.0,1.08231339]
[1751521769039,0.0002469,109500.0,109490.0,0.84269503]
[1751521769256,0.0002469,109500.0,109490.0,0.80671658]
[1751521769480,0.0002469,109500.0,109490.0,1.17833364]
[1751521769693,0.0002469,109500.0,109490.0,0.98653573]
[1751521769904,0.0002469,109500.0,109490.0,0.99566898]
[1751521770127,0.0002469,109500.0,109490.0,1.00480206]
[1751521770334,0.0002469,109500.0,109490.0,1.00480215]
[1751521770568,0.0002469,109500.0,109490.0,1.55810091]
[1751521770788,0.0002469,109500.0,109490.0,1.59407936]
[1751521771001,0.0002469,109500.0,109490.0,1.39227465]
[1751521771249,0.0002469,109500.0,109490.0,1.26106044]
[1751521771451,0.0002469,109500.0,109490.0,1.27019311]
[1751521771664,0.0002469,109500.0,109490.0,1.29714559]
[1751521771880,0.0002469,109500.0,109490.0,1.6408612]
[1751521772303,0.0002469,109500.0,109490.0,1.69482887]
[1751521772521,0.0127617,109510.0,109500.0,0.57965352]
[1751521772733,0.01323072,109510.0,109500.0,1.53000955]
[1751521773619,0.01323072,109510.0,109500.0,1.53070075]
[1751521773848,0.01323072,109510.0,109500.0,1.53983258]
[1751521774512,0.01323072,109510.0,109500.0,1.51289281]
[1751521774742,0.01323072,109510.0,109500.0,1.26341626]
[1751521774964,0.01323072,109510.0,109500.0,0.94266817]
[1751521775233,0.01323072,109510.0,109500.0,0.95720902]
[1751521775901,0.01523072,109510.0,109500.0,0.95720902]
[1751521777022,0.01523072,109510.0,109500.0,1.48486207]
[1751521777257,0.01523072,109510.0,109500.0,1.51862648]
[1751521777480,0.01523072,109510.0,109500.0,1.52775831]
[1751521777968,0.01523072,109510.0,109500.0,1.84106675]
[1751521778214,0.01523072,109510.0,109500.0,1.85019875]
[1751521778448,0.01523072,109510.0,109500.0,1.87713852]
[1751521779751,0.01523072,109510.0,109500.0,1.88612852]
[1751521782070,0.01523072,109510.0,109500.0,1.59112852]
[1751521783550,0.01523072,109510.0,109500.0,1.62710697]
[1751521784173,0.01543072,109510.0,109500.0,1.62710697]
[1751521785634,0.01543072,109510.0,109500.0,1.6001672]
[1751521786465,0.01543072,109510.0,109500.0,1.65413487]
[1751521787460,0.01543072,109510.0,109500.0,1.61815642]
[1751521791786,0.01543072,109510.0,109500.0,0.96768832]
[1751521792002,0.01543072,109510.0,109500.0,1.29748824]
[1751521792419,0.01451757,109510.0,109500.0,1.29748824]
[1751521792636,0.01451757,109510.0,109500.0,1.21612475]
[1751521792883,0.01451757,109510.0,109500.0,1.23438899]
[1751521793107,0.01451757,109510.0,109500.0,1.2526529]
[1751521793342,0.01451757,109510.0,109500.0,1.2436629]
[1751521793567,0.01451757,109510.0,109500.0,1.31573916]
[1751521793785,0.01451757,109510.0,109500.0,1.30660725]
[1751521794274,0.01451757,109510.0,109500.0,1.31573866]
[1751521794712,0.01451757,109510.0,109500.0,1.30660683]
[1751521794937,0.01451757,109510.0,109500.0,1.61814301]
[1751521795159,0.01451757,109510.0,109500.0,1.62727492]
[1751521795381,0.01451757,109510.0,109500.0,1.64576738]
[1751521795608,0.01451757,109510.0,109500.0,1.63663555]
[1751521796041,0.01451757,109510.0,109500.0,1.31596746]
[1751521796472,0.01451757,109510.0,109500.0,1.30683555]
[1751521796891,0.01451757,109510.0,109500.0,1.31596746]
[1751521797363,0.01451757,109510.0,109500.0,1.29770355]
[1751521797587,0.01451757,109510.0,109500.0,0.55618282]
[1751521797806,0.04521757,109510.0,109500.0,0.39068197]
[1751521798047,0.04521757,109510.0,109500.0,0.40522282]
[1751521798248,0.04521757,109510.0,109500.0,0.99381465]
[1751521798472,0.04521757,109510.0,109500.0,1.04808207]
[1751521798688,0.04521757,109510.0,109500.0,0.43107305]
[1751521799126,0.04521757,109510.0,109500.0,0.31629946]
[1751521799387,0.04521757,109510.0,109500.0,0.62885446]
[1751521800456,0.04521757,109510.0,109500.0,0.62925446]
[1751521802427,0.04521757,109510.0,109500.0,0.57498704]
[1751521804774,0.04521757,109510.0,109500.0,0.38594704]
[1751521804987,0.04521757,109510.0,109500.0,0.57498704]
[1751521805403,0.04521757,109510.0,109500.0,0.92277448]
[1751521806268,0.04521757,109510.0,109500.0,0.60210639]
[1751521807254,0.3961009,109510.0,109500.0,0.06370576]
[1751521807281,0.39327957,109510.0,109500.0,0.02751935]
[1751521807874,0.06147998,109510.0,109500.0,0.0004]
[1751521808098,0.38214807,109510.0,109500.0,0.0004]
[1751521808327,0.57591179,109510.0,109500.0,0.0004]
[1751521808792,0.57391179,109510.0,109500.0,0.0004]
[1751521809004,0.29303237,109510.0,109500.0,0.0004]
[1751521809227,0.56678046,109510.0,109500.0,0.0004]
[1751521809446,0.61370046,109510.0,109500.0,0.0004]
[1751521809684,0.56678046,109510.0,109500.0,0.0004]
[1751521810150,0.61370046,109510.0,109500.0,0.0004]
[1751521811287,0.47855253,109510.0,109500.0,0.0004]
[1751521811513,0.79922062,109510.0,109500.0,0.0004]
[1751521811952,0.94922062,109510.0,109500.0,0.0004]
[1751521812168,0.63759506,109510.0,109500.0,0.0004]
[1751521812400,1.27693124,109510.0,109500.0,0.0004]
[1751521812834,0.96126315,109510.0,109500.0,0.0004]
[1751521813725,0.95926315,109510.0,109500.0,0.0004]
[1751521814149,0.95626315,109510.0,109500.0,0.0004]
[1751521814570,0.63859506,109510.0,109500.0,0.0004]
[1751521814814,0.81658307,109510.0,109500.0,0.0004]
[1751521815023,1.05342307,109510.0,109500.0,0.0004]
[1751521815231,1.05942307,109510.0,109500.0,0.0004]
[1751521815590,1.38009116,109510.0,109500.0,0.0004]
[1751521815995,0.05879825,109490.0,109470.0,0.42219346]
[1751521816190,0.37946634,109490.0,109470.0,0.42219346]
[1751521816416,0.37289951,109490.0,109470.0,0.42219346]
[1751521816593,0.36050159,109480.0,109470.0,0.0731462]
[1751521816796,0.39828809,109480.0,109470.0,0.0731462]
[1751521816994,0.04692,109480.0,109470.0,0.0731462]
[1751521817204,0.05605342,109480.0,109470.0,0.0731462]
[1751521817616,0.04692,109480.0,109470.0,0.0731462]
[1751521818620,0.05605333,109480.0,109470.0,0.0853555]
[1751521819033,0.05605333,109480.0,109470.0,0.0122093]
[1751521819233,0.04692,109480.0,109470.0,0.0122093]
[1751521819477,0.05605342,109480.0,109470.0,0.0122093]
[1751521819654,0.04692,109480.0,109470.0,0.003]
[1751521820249,0.04692,109480.0,109470.0,0.0034]
[1751521820685,0.05605333,109480.0,109470.0,0.0034]
[1751521820888,0.08675333,109480.0,109470.0,0.0034]
[1751521821351,0.40742142,109480.0,109470.0,0.0034]
[1751521821706,0.39828809,109480.0,109470.0,0.0034]
[1751521823403,0.07762,109480.0,109470.0,0.0034]
[1751521824472,0.06262,109480.0,109470.0,0.0034]
[1751521828639,0.04692,109480.0,109470.0,0.0034]
[1751521831948,0.0560535,109480.0,109470.0,0.0034]
[1751521832161,0.36758809,109480.0,109470.0,0.0034]
[1751521832376,0.37672151,109480.0,109470.0,0.0034]
[1751521832561,0.0460066,109480.0,109470.0,0.0034]
[1751521832841,0.05514002,109480.0,109470.0,0.0034]
[1751521833062,0.0460066,109480.0,109470.0,0.0034]
[1751521833483,0.05514002,109480.0,109470.0,0.0034]
[1751521834120,0.0460066,109480.0,109470.0,0.0034]
[1751521834337,0.0460066,109480.0,109470.0,0.02034048]
[1751521834768,0.0460066,109480.0,109470.0,0.0034]
[1751521834997,0.05513993,109480.0,109470.0,0.0034]
[1751521836268,0.0460066,109480.0,109470.0,0.0034]
[1751521836709,0.04724,109480.0,109470.0,0.0034]
[1751521836930,0.04724,109490.0,109480.0,0.016]
[1751521837143,0.0002,109500.0,109480.0,0.35316809]
[1751521837365,0.0002,109500.0,109480.0,0.05958918]
[1751521837612,0.04744,109500.0,109480.0,0.05958918]
[1751521838046,0.04744,109500.0,109480.0,0.0596334]
[1751521838259,0.05044,109500.0,109480.0,0.0596334]
[1751521838472,0.05957166,109500.0,109480.0,0.0596334]
[1751521838771,0.06157166,109500.0,109480.0,0.0596334]
[1751521839341,0.07070341,109500.0,109480.0,0.0596334]
[1751521839547,0.06770341,109500.0,109480.0,0.0596334]
[1751521839747,0.06870341,109500.0,109480.0,0.0596334]
[1751521839946,0.06670341,109500.0,109480.0,0.0596334]
[1751521840348,0.04844,109500.0,109480.0,0.09581981]
[1751521840802,0.05757166,109500.0,109480.0,0.09581981]
[1751521841211,0.06670349,109500.0,109480.0,0.09581981]
[1751521841937,0.05757166,109500.0,109480.0,0.09581981]
[1751521843034,0.04844,109500.0,109480.0,0.09581981]
[1751521843252,0.05757175,109500.0,109480.0,0.09581981]
[1751521843459,0.05757175,109500.0,109480.0,0.4164879]
[1751521843667,0.04844,109500.0,109480.0,0.4164879]
[1751521843878,0.04844,109500.0,109490.0,0.0153]
[1751521844495,0.0012,109500.0,109490.0,0.0153]
[1751521844710,0.04844,109500.0,109490.0,0.0153]
[1751521844908,0.04844,109500.0,109490.0,0.0312]
[1751521845163,0.04844,109500.0,109490.0,0.0583334]
[1751521845324,0.04844,109500.0,109490.0,0.0312]
[1751521845742,0.04744,109500.0,109490.0,0.0312]
[1751521845958,0.04844,109500.0,109490.0,0.0312]
[1751521847763,0.0012,109500.0,109490.0,0.35186809]
[1751521847965,0.0012,109500.0,109490.0,0.71900149]
[1751521848093,0.0012,109500.0,109490.0,0.85708123]
[1751521848504,0.0012,109500.0,109490.0,0.82089482]
[1751521848673,0.0012,109500.0,109490.0,1.04648123]
[1751521848888,0.0012,109500.0,109490.0,1.0556144]
[1751521849105,0.0012,109500.0,109490.0,1.03934798]
[1751521849313,0.0012,109500.0,109490.0,1.00316157]
[1751521849518,0.0002,109500.0,109490.0,1.00316157]
[1751521849695,0.0002,109500.0,109490.0,1.00516157]
[1751521850163,0.0002,109500.0,109490.0,1.00316157]
[1751521850378,0.0002,109500.0,109490.0,0.5897334]
[1751521851213,0.0002,109500.0,109490.0,0.5927334]
[1751521852336,0.0002,109500.0,109490.0,0.4033334]
[1751521852507,0.0002,109500.0,109490.0,0.5926134]
[1751521855202,0.0002,109500.0,109490.0,0.91328149]
[1751521856101,0.0002,109500.0,109490.0,0.5926134]
[1751521856864,0.0002,109500.0,109490.0,0.60161815]
[1751521857831,0.0002,109500.0,109490.0,0.5926134]
[1751521858030,0.0002,109500.0,109490.0,0.91328149]
[1751521864280,0.0002,109500.0,109490.0,0.9494679]
[1751521865174,0.0002,109500.0,109490.0,0.62879981]
[1751521865376,0.0002,109500.0,109490.0,0.9494679]
[1751521869290,0.0002,109500.0,109490.0,0.9223345]
[1751521870181,0.0002,109500.0,109490.0,0.60166641]
[1751521873278,0.0002,109500.0,109490.0,0.65593383]
[1751521875335,0.0002,109500.0,109490.0,1.04974812]
[1751521875596,0.0002,109500.0,109490.0,1.01356171]
[1751521878007,0.0002,109500.0,109490.0,0.95929429]
[1751521878235,0.0002,109500.0,109490.0,1.01365434]
[1751521879167,0.0002,109500.0,109490.0,1.02278759]
[1751521879380,0.0002,109500.0,109490.0,1.01365434]
[1751521879599,0.0002,109500.0,109490.0,0.94050814]
[1751521880216,0.0002,109500.0,109490.0,0.94964139]
[1751521880633,0.0002,109500.0,109490.0,0.94050814]
[1751521883045,0.0002,109500.0,109490.0,0.94964139]
[1751521883737,0.0002,109500.0,109490.0,0.94050814]
[1751521884170,0.0002,109500.0,109490.0,0.94964139]
[1751521884585,0.0002,109500.0,109490.0,0.94050814]
[1751521884818,0.0002,109500.0,109490.0,0.61984005]
[1751521885044,0.0002,109500.0,109490.0,0.94050814]
[1751521885463,0.0002,109500.0,109490.0,0.94964139]
[1751521886365,0.0002,109500.0,109490.0,1.14143964]
[1751521886794,0.0002,109500.0,109490.0,1.15057272]
[1751521887017,0.0002,109500.0,109490.0,1.14143964]
[1751521887855,0.0002,109500.0,109490.0,1.15057272]
[1751521888059,0.0002,109500.0,109490.0,0.94964139]
[1751521888467,0.0002,109500.0,109490.0,0.94050814]
[1751521890007,0.0002,109500.0,109490.0,0.94964139]
[1751521890197,0.0002,109500.0,109490.0,0.95877456]
[1751521891054,0.0002,109500.0,109490.0,0.94964139]
[1751521891403,0.0002,109500.0,109490.0,0.94050814]
[1751521893225,0.0002,109500.0,109490.0,0.95877439]
[1751521893441,0.0002,109500.0,109490.0,0.94050814]
[1751521893639,0.0002,109500.0,109490.0,0.94964131]
[1751521893773,0.0002,109500.0,109490.0,0.94964139]
[1751521894982,0.0002,109500.0,109490.0,0.94050814]
[1751521895181,0.0002,109500.0,109490.0,0.94964139]
[1751521895604,0.0002,109500.0,109490.0,0.94050814]
[1751521895824,0.0002,109500.0,109490.0,0.92952726]
[1751521896089,0.0002,109500.0,109490.0,0.93866051]
[1751521898599,0.0002,109500.0,109490.0,0.94779359]
[1751521898789,0.0002,109500.0,109490.0,0.93866051]
[1751521899426,0.0002,109500.0,109490.0,0.94779359]
[1751521899833,0.0002,109500.0,109490.0,0.93866051]
[1751521900562,0.0002,109500.0,109490.0,0.92952734]
[1751521900979,0.0002,109500.0,109490.0,0.93866051]
[1751521901151,0.0002,109500.0,109490.0,0.92952734]
[1751521901588,0.0002,109500.0,109490.0,0.73111409]
[1751521901797,0.0002,109500.0,109490.0,0.92023409]
[1751521902457,0.0002,109500.0,109490.0,0.92936734]
[1751521903047,0.0002,109500.0,109490.0,0.92023409]
[1751521903259,0.0002,109500.0,109490.0,0.87500729]
[1751521903978,0.0002,109500.0,109490.0,0.86587404]
[1751521904610,0.0002,109500.0,109490.0,0.87500729]
[1751521905932,0.0002,109500.0,109490.0,0.88414046]
[1751521906252,0.0002,109500.0,109490.0,0.87500729]
[1751521907260,0.0002,109500.0,109490.0,0.94708355]
[1751521907804,0.0002,109500.0,109490.0,0.9379503]
[1751521911893,0.0002,109500.0,109490.0,0.94708355]
[1751521912765,0.0002,109500.0,109490.0,0.88414046]
[1751521913179,0.0002,109500.0,109490.0,0.87500729]
[1751521914021,0.0002,109500.0,109490.0,0.88414046]
[1751521914560,0.0002,109500.0,109490.0,0.87500729]
[1751521916258,0.0002,109500.0,109490.0,0.88414046]